Cogmind - Beta 14 *** ADVENTURER MODE // 2024.10.11 @ 16:33:42 Player: 7604 Result: Destroyed by G-67 Veteran with Field Laser Performance ------------- Evolutions (7) 3500 Regions Visited (24) 4800 Robots Destroyed (140) 700 Value Destroyed (4055) 4055 Prototype IDs (56) 1120 Alien Tech Used (2) 400 Bonus (4605) 4605 TOTAL SCORE: 19180 Bonus ------- High Alert Combat Kills 155 Follower Combat Kills 912 Met Data Miner 300 Met Zhirov 300 Hacked Protovariant 500 Scanned by Researcher 500 Acquired SGEMP 2000 Friendly Fire -62 Cogmind --------- Core Integrity 0/1300 Matter 143/300 Energy 80/100 System Corruption 13% Temperature Cool (21) Movement Flying (155) Ox2 Location -3/Testing Parts ------- > --- POWER (1) -------- (None) > --- PROPULSION (6) --- Electron Diverter > --- UTILITY (12) ----- Medium Storage Unit Advanced Signal Interpreter Improved Hacking Suite Advanced Hacking Suite Advanced Hacking Suite Improved Component Analysis Suite > --- WEAPON (2) ------- Fusion Bomb Launcher > --- INVENTORY (10) --- Experimental Thermal Shield Experimental Thermal Defense Suite Long-range Proton Cannon Advanced Datajack Improved Plasma Cutter SGEMP Prototype Peak State ------------ > --- POWER ------------ Light Nuclear Core > --- PROPULSION ------- Cooled Nuclear Pulse Thruster Cooled Nuclear Pulse Thruster Cooled Nuclear Pulse Thruster Impulse Thruster Impulse Thruster Array > --- UTILITY ---------- Experimental Heat Sink Experimental Cooling System Medium Storage Unit Experimental Sensor Array Advanced Signal Interpreter Centrium Light Armor Plating Makeshift Hacking Suite Advanced Hacking Suite Advanced Hacking Suite Advanced System Shield Assault Drone Bay > --- WEAPON ----------- Enhanced Force Lance > --- INVENTORY -------- Light Nuclear Core Impulse Thruster Electron Diverter Impulse Thruster Array Hardened Medium Armor Plating Improved Component Analysis Suite Dimensional Node Initializer Improved Plasma Cutter [Rating: 138] Favorites ----------- Power Light Nuclear Core Engine Light Ion Engine Power Core Light Nuclear Core Reactor Micro Antimatter Reactor Propulsion Aluminum Leg Leg Aluminum Leg Flight Unit Improved Flight Unit Utility Experimental Sensor Array Device Experimental Sensor Array Storage Medium Storage Unit Processor Improved Signal Interpreter Hackware Advanced Hacking Suite Protection Improved Light Armor Plating Weapon Improved Assault Rifle Energy Gun Particle Gun Energy Cannon Long-range Proton Cannon Ballistic Gun Improved Assault Rifle Ballistic Cannon Improved Light Cannon Launcher Tactical Quantum Warhead Special Weapon Enhanced Flamer Impact Weapon Powered Hammer Piercing Weapon Heavy Pick Build | -11 -10 -10 -9 -9 -8 -7 -7 -7 -7 -7 -7 -6 -6 -6 -5 -5 -5 -5 -4 -4 -4 -4 -3 -3 ------- Run | Yrd Mat Min Mat Sto Mat Fac Was Fac Low Low Dat Pro Fac Ext Fac Upp Upp Zhi Pro Fac Upp Upp Res Tes Slots Evolved 14 | . . . 2 . 2 2 . . . . . . 2 . 2 . . . . 2 . . 2 . Power . | . . . . . . . . . . . . . . . . . . . . . . . . . Propulsion 4 | . . . 2 . . 1 . . . . . . . . 1 . . . . . . . . . Utility 10 | . . . . . 2 1 . . . . . . 2 . 1 . . . . 2 . . 2 . Weapon . | . . . . . . . . . . . . . . . . . . . . . . . . . Parts Attached 221 | 6 9 1 6 18 12 16 5 15 1 3 2 . 12 12 8 2 5 9 3 12 5 . 29 30 Power 20 | 1 1 . 1 . 1 2 . 3 . 1 . . 2 1 . 1 . . 1 . 1 . 1 3 Engine 9 | 1 1 . 1 . . 1 . 1 . . . . 1 1 . 1 . . 1 . . . . . Core 8 | . . . . . 1 1 . 2 . 1 . . 1 . . . . . . . 1 . . 1 Reactor 3 | . . . . . . . . . . . . . . . . . . . . . . . 1 2 Propulsion 63 | 2 1 . 4 10 5 6 . 4 . . . . 2 2 3 1 4 3 1 2 . . 6 7 Treads . | . . . . . . . . . . . . . . . . . . . . . . . . . Leg 22 | 2 1 . 4 10 5 . . . . . . . . . . . . . . . . . . . Wheel . | . . . . . . . . . . . . . . . . . . . . . . . . . Hover . | . . . . . . . . . . . . . . . . . . . . . . . . . Flight 41 | . . . . . . 6 . 4 . . . . 2 2 3 1 4 3 1 2 . . 6 7 Utility 79 | 1 4 . 1 . 4 5 3 5 . 1 . . 5 7 5 . 1 6 . 8 . . 14 9 Device 27 | . 3 . . . 1 1 1 2 . . . . 2 4 1 . . . . 3 . . 7 2 Storage 10 | 1 1 . 1 . . 1 . . . . . . 1 . 1 . 1 3 . . . . . . Processor 4 | . . . . . . . . 1 . . . . . . . . . . . 1 . . 2 . Hackware 10 | . . . . . . 1 . . . . . . 1 1 1 . . 1 . 2 . . 1 2 Protection 28 | . . . . . 3 2 2 2 . 1 . . 1 2 2 . . 2 . 2 . . 4 5 Artifact . | . . . . . . . . . . . . . . . . . . . . . . . . . Weapon 59 | 2 3 1 . 8 2 3 2 3 1 1 2 . 3 2 . . . . 1 2 4 . 8 11 Energy Gun 2 | . 1 1 . . . . . . . . . . . . . . . . . . . . . . Energy Cannon 1 | . . . . . . . . . . . . . . . . . . . . . . . . 1 Ballistic Gun 21 | 2 1 . . 6 1 1 1 2 . 1 1 . 1 1 . . . . . . . . . 3 Ballistic Cannon 8 | . . . . 2 1 . 1 . . . . . . . . . . . 1 1 1 . . 1 Launcher 5 | . . . . . . . . . . . . . 1 1 . . . . . . . . . 3 Special Weapon 9 | . 1 . . . . 1 . . . . . . . . . . . . . . 3 . 4 . Impact Weapon 5 | . . . . . . 1 . 1 1 . 1 . 1 . . . . . . . . . . . Slashing Weapon . | . . . . . . . . . . . . . . . . . . . . . . . . . Piercing Weapon 8 | . . . . . . . . . . . . . . . . . . . . 1 . . 4 3 Special Melee Weapon . | . . . . . . . . . . . . . . . . . . . . . . . . . Unidentified Prototypes 11 | . . . . . . . . . . . . . 1 . . . . 6 . . . . 2 2 Corrupted Parts 1 | . . . . . . . . . . . . . . . . . . . . . . . . 1 System Corruption 6 | . . . . . . . . . . . . . . . . . . . . . . . . 6 Parts Lost 55 | . 1 . . 6 4 2 . 1 . 1 . . 1 6 . 3 . . . . 2 . 8 20 Power 7 | . 1 . . . . . . . . . . . . 1 . 1 . . . . 1 . 1 2 Propulsion 25 | . . . . 5 4 . . . . . . . 1 2 . 2 . . . . . . 3 8 Utility 16 | . . . . . . 1 . 1 . 1 . . . 1 . . . . . . 1 . 4 7 Weapon 7 | . . . . 1 . 1 . . . . . . . 2 . . . . . . . . . 3 Highest Loss Streak 12 | . 1 . . 3 3 1 . 1 . 1 . . 1 4 . 1 . . . . 2 . 5 12 To Critical Strikes 1 | . . . . . . . . . . . . . . . . . . . . . . . . 1 Average Slot Usage (%) 92 | . 99 100 93 98 83 83 97 98 100 94 84 100 83 91 88 90 92 92 94 92 95 89 83 79 Engine 4 | . 14 14 11 11 . . . . . . . . . 5 5 5 5 5 5 5 3 . . . Core 2 | . . . . . 8 6 7 7 7 7 7 7 5 . . . . . . . 1 5 3 . Leg 13 | . 28 28 37 42 32 2 . . . . . . . . . . . . . . . . . . Flight 19 | . . . . . . 31 38 38 38 38 38 38 33 31 33 31 33 35 35 31 31 31 23 22 Device 12 | . 13 14 11 11 12 13 15 13 15 8 7 7 11 9 7 11 11 11 11 8 10 10 16 14 Storage 8 | . 14 14 11 11 9 7 7 7 7 7 7 7 6 6 5 5 5 6 5 5 5 5 4 4 Processor 2 | . . . . . . . . 3 7 7 7 7 6 6 5 5 5 5 5 5 5 5 4 4 Hackware 6 | . . . . . . 3 7 1 . . . . 4 11 16 17 17 17 17 21 21 21 18 17 Protection 4 | . . . . . 3 1 5 8 7 7 15 15 6 7 4 5 5 2 5 10 8 5 3 4 Energy Gun 2 | . 12 14 11 3 . . . . . . . . . . . . . . . . . . . . Ballistic Gun 7 | . 14 14 11 11 17 7 5 7 7 7 . 7 . 3 . . . . . . . . . 1 Impact Weapon 2 | . . . . . . 5 7 6 7 7 . 7 5 6 5 5 5 5 5 2 . . . . Peak Build Rating 138 | 6 8 11 14 19 32 42 48 48 49 50 50 50 70 62 66 67 68 84 84 102 108 98 138 136 Average Rating 48 | 4 6 9 13 16 23 35 43 43 48 48 44 50 53 55 58 63 64 74 79 92 102 98 122 116 On Entrance 51 | . 6 8 11 14 18 19 38 44 47 49 50 50 50 61 47 66 62 65 79 84 102 98 98 118 Naked Turns . | . . . . . . . . . . . . . . . . . . . . . . . . . Heaviest Build 45 | 11 18 19 36 38 44 34 23 26 22 25 25 25 28 37 26 22 23 23 32 34 36 27 45 45 Greatest Support 50 | 20 20 20 40 45 40 30 26 28 28 28 28 28 28 28 34 34 34 36 37 46 38 38 47 50 Greatest Overweight (x) 10 | . . . . 1 3 1 . . . . . . . 10 . . . . . . . . 1 1 Average Overweight (x) . | . . . . . . . . . . . . . . . . . . . . . . . . . Largest Inventory Capacity 15 | 8 10 10 15 15 15 15 8 8 8 8 8 8 10 10 10 8 10 10 10 10 10 10 10 10 Average Capacity 10 | 6 9 10 13 15 15 8 8 8 8 8 8 8 8 10 8 8 9 10 10 10 10 10 10 10 Most Carried 15 | 2 10 10 12 15 15 15 8 8 8 8 8 8 10 10 8 8 10 10 10 10 10 10 10 10 Average Carried 9 | . 6 9 9 13 13 7 7 7 7 7 8 8 6 7 6 6 8 9 8 9 9 10 9 8 Final Capacity 15 | 8 10 10 15 15 15 8 8 8 8 8 8 8 10 10 8 8 10 10 10 10 10 10 10 10 Final Carried 15 | 2 10 10 11 15 15 8 8 7 8 8 8 8 7 8 7 6 10 10 10 10 10 10 9 7 Class Distribution -------------------- 37% | Hacker-Sprinter 21% | Scavenger-Mutant 17% | Mutant 11% | Sprinter 5% | Wizard-Sprinter 4% | Scout Dominant Class ---------------- Mutant | -10/Materials Mutant | -10/Mines Scavenger-Mutant | -9/Materials Scavenger-Mutant | -9/Storage Scavenger-Mutant | -8/Materials Hacker-Sprinter | -7/Factory Hacker-Sprinter | -7/Waste Sprinter | -7/Factory Scout | -7/Lower Caves Sprinter | -7/Lower Caves Sprinter | -7/Data Miner Sprinter | -6/Proximity Caves Hacker-Sprinter | -6/Factory Hacker-Sprinter | -6/Extension Hacker-Sprinter | -5/Factory Hacker-Sprinter | -5/Upper Caves Hacker-Sprinter | -5/Upper Caves Hacker-Mutant | -5/Zhirov Hacker-Sprinter | -4/Proximity Caves Hacker-Sprinter | -4/Factory Hacker-Sprinter | -4/Upper Caves Hacker-Sprinter | -4/Upper Caves Hacker-Sprinter | -3/Research Wizard-Sprinter | -3/Testing Resources | -11 -10 -10 -9 -9 -8 -7 -7 -7 -7 -7 -7 -6 -6 -6 -5 -5 -5 -5 -4 -4 -4 -4 -3 -3 ----------- Run | Yrd Mat Min Mat Sto Mat Fac Was Fac Low Low Dat Pro Fac Ext Fac Upp Upp Zhi Pro Fac Upp Upp Res Tes Matter Collected 3958 | 253 153 197 87 581 491 88 143 243 51 41 . 19 385 235 79 20 50 . 144 110 100 . 231 257 Remotely . | . . . . . . . . . . . . . . . . . . . . . . . . . Salvage Created 4452 | . 370 249 120 989 732 119 . 210 . 114 . 11 448 346 103 . 119 . . 73 130 . 246 73 Parts 214 | . 28 13 12 43 29 . . 7 . 2 . 2 13 17 . . 5 . . 4 8 . 25 6 Haulers Intercepted 4 | . 2 . 1 1 . . . . . . . . . . . . . . . . . . . . Recyclers Shooed 2 | . . . . . . . . . . . . . . 1 . . . . . . . . . 1 Parts Field Recycled . | . . . . . . . . . . . . . . . . . . . . . . . . . Retrieved Matter . | . . . . . . . . . . . . . . . . . . . . . . . . . Parts Self-Destructed 19 | . . . . . . . . . . . . 2 . . . 6 2 . . . 9 . . . Prevented 1 | . . . . . . . . . . 1 . . . . . . . . . . . . . . Kills | -11 -10 -10 -9 -9 -8 -7 -7 -7 -7 -7 -7 -6 -6 -6 -5 -5 -5 -5 -4 -4 -4 -4 -3 -3 ------- Run | Yrd Mat Min Mat Sto Mat Fac Was Fac Low Low Dat Pro Fac Ext Fac Upp Upp Zhi Pro Fac Upp Upp Res Tes Combat Hostiles Destroyed 90 | . 10 5 1 23 16 . . 5 . 2 . 2 6 8 . . 4 . . . 6 . 1 1 Melee 10 | . . . . . . . . 2 . 1 . 1 1 1 . . 3 . . . . . 1 . Guns 45 | . 10 5 1 12 14 . . 2 . . . 1 . . . . . . . . . . . . Cannons 17 | . . . . 11 2 . . . . . . . . . . . . . . . 4 . . . AOE 13 | . . . . . . . . . . . . . 5 7 . . . . . . . . . 1 Classes Destroyed 16 | . 5 3 . 2 2 . . . . 1 . 1 . 1 . . 1 . . . . . . . Worker 2 | . . 1 . . . . . . . . . . 1 . . . . . . . . . . . Builder 13 | . 1 . . . . . . . . . . . 2 1 3 . . . . 1 . . 3 2 Tunneler 2 | . . . . . 1 1 . . . . . . . . . . . . . . . . . . Hauler 4 | . 2 . 1 1 . . . . . . . . . . . . . . . . . . . . Recycler 5 | . . 1 . 1 1 . . . . . . . 1 1 . . . . . . . . . . Operator 4 | . . . . . 1 . . 2 . . . . . . . . . . . . . . . 1 Drone 2 | . . . . . . . . . . . . 2 . . . . . . . . . . . . Watcher 22 | . 3 . 2 1 . 4 . 2 . . . . 2 2 2 . . . . 1 . . 3 . Swarmer 30 | . 8 . . 2 2 . . 5 . . . . . 5 . . 4 . . . 4 . . . Grunt 39 | . 2 3 1 12 11 . . . . . . . 6 2 . . . . . . 1 . . 1 Brawler 2 | . . . . 1 1 . . . . . . . . . . . . . . . . . . . Sentry 11 | . . . . 8 2 . . . . . . . . . . . . . . . 1 . . . Hunter 2 | . . . . . . . . . . 2 . . . . . . . . . . . . . . Programmer 2 | . . . . . . . . . . . . . . 1 . . . . . . . . 1 . Samaritan 1 | . . . . . . . . . . . . . . . . . 1 . . . . . . . Assembled 2 | . . 2 . . . . . . . . . . . . . . . . . . . . . . Best Kill Streak 9 | . 3 4 2 6 3 2 . 2 . 1 . 1 6 9 2 . 2 . . 1 4 . 2 2 Combat Bots Only 7 | . 3 2 1 5 3 . . 2 . 1 . 1 6 7 . . 4 . . . 4 . 1 1 Max Kills in Single Turn 4 | . 2 1 1 2 2 1 . 1 . 1 . 1 2 4 1 . 1 . . 1 1 . 1 2 Gunslinging 1 | . 1 . . . . . . . . . . . . . . . . . . . . . . . Exploded 3 | . . . . . . . . . . . . . 2 3 . . . . . . . . . 1 Melee 1 | . . . . . . . . 1 . 1 . 1 1 1 . . 1 . . . . . 1 . Uniques/NPCs Destroyed . | . . . . . . . . . . . . . . . . . . . . . . . . . Combat | -11 -10 -10 -9 -9 -8 -7 -7 -7 -7 -7 -7 -6 -6 -6 -5 -5 -5 -5 -4 -4 -4 -4 -3 -3 -------- Run | Yrd Mat Min Mat Sto Mat Fac Was Fac Low Low Dat Pro Fac Ext Fac Upp Upp Zhi Pro Fac Upp Upp Res Tes Hostile Shots Fired 1250 | . 68 25 4 147 127 51 . 34 . 17 . 12 36 83 18 9 20 . 5 38 72 8 186 290 Missed 557 | . 24 6 . 42 38 33 . 13 . 9 . 7 18 38 10 5 12 . 5 32 34 6 97 128 Damage Taken 9574 | . 290 198 32 1124 1076 406 . 235 . 100 . 91 306 598 104 65 85 . . 65 529 16 1443 2811 Core 2056 | . 75 46 . 75 91 42 . 47 . 16 . 16 94 122 12 . 9 . . 20 70 16 192 1113 Absorbed by Shields 4 | . . . . . . . . . . . . . . . 4 . . . . . . . . . Ignored by Resistances 2707 | . 96 60 10 327 308 112 . 69 . 28 . 25 86 171 30 18 27 . . 18 150 6 403 763 Regen/Repaired (Parts) 374 | . . . . . . . 66 133 . . . . . 70 80 . . . . 25 . . . . Core Remaining (%) 81 | 100 . 51 . 81 83 . . . . . . 82 . 74 . . . . 88 . . 90 . . Volleys Fired 281 | . 34 17 9 73 66 2 . 12 . 3 . 8 4 6 . . . . 2 . 19 . 11 15 Largest 2 | . 2 2 2 2 2 1 . 1 . 1 . 1 1 1 . . . . 1 . 1 . 1 1 Hottest 100 | . 100 85 85 88 67 100 . 25 . 28 . 28 39 39 . . . . 57 . 80 . 80 81 Shots Fired 469 | . 66 32 16 145 128 2 . 13 . 3 . 7 4 6 . . . . 2 . 19 . 11 15 Gun 363 | . 64 32 16 93 122 . . 13 . 3 . 7 1 3 . . . . . . . . . 9 Cannon 67 | . . . . 52 6 . . . . . . . . . . . . . 2 . 5 . . 2 Launcher 10 | . . . . . . . . . . . . . 3 3 . . . . . . . . . 4 Special 29 | . 2 . . . . 2 . . . . . . . . . . . . . . 14 . 11 . Kinetic 354 | . 33 17 9 124 128 . . 13 . 3 . 7 1 3 . . . . 2 . 5 . . 9 Thermal 103 | . 33 15 7 21 . 2 . . . . . . . . . . . . . . 14 . 11 . Explosive 10 | . . . . . . . . . . . . . 3 3 . . . . . . . . . 4 Electromagnetic 2 | . . . . . . . . . . . . . . . . . . . . . . . . 2 Robot Hit Streak 34 | . 9 7 4 22 34 . . 3 . 3 . 1 1 3 . . . . . . 10 . 10 2 Robot Miss Streak 6 | . 4 1 1 2 6 . . 2 . 5 . 5 1 2 . . . . . . 1 . 1 2 Penetration Max 1 | . . . . . . . . . . . . . . . . . . . . . 1 . . . Secondary Targets 5 | . 1 2 . . 2 . . . . . . . . . . . . . . . . . . . Max Gunslinging Chain 1 | . 1 1 . . 1 . . . . . . . . . . . . . . . . . . . Shots Hit Robots 420 | . 39 25 10 118 111 6 . 14 . 5 . 3 11 6 6 . 8 . . 3 19 . 26 10 Core Hits 193 | . 20 12 4 40 49 . . 3 . 3 . 1 10 16 . . 3 . . 1 9 . 8 14 Critical Kills 5 | . . . . . 1 . . 1 . 1 . . . 1 . . 1 . . . . . . . Critical Parts Destroyed 6 | . . . . . 1 1 . . . 1 . . 3 . . . . . . . . . . . Critical Strikes 28 | . 2 1 . 5 2 1 . 1 . 2 . . 3 1 . . 1 . . 1 3 . 5 . Burn 7 | . 2 1 . 1 . . . . . . . . . . . . . . . . 2 . 1 . Destroy 2 | . . . . . 2 . . . . . . . . . . . . . . . . . . . Blast 4 | . . . . 4 . . . . . . . . . . . . . . . . . . . . Smash 9 | . . . . . . 1 . 1 . 2 . . 3 1 . . 1 . . . . . . . Impale 6 | . . . . . . . . . . . . . . . . . . . . 1 1 . 4 . Melee Attacks 184 | . . . . . . 17 1 35 . 2 . 8 21 7 15 5 11 . 4 16 8 . 27 7 Impact 135 | . . . . . . 17 1 35 . 2 . 8 21 7 15 5 11 . 4 9 . . . . Slashing . | . . . . . . . . . . . . . . . . . . . . . . . . . Piercing 49 | . . . . . . . . . . . . . . . . . . . . 7 8 . 27 7 Sneak Attacks 19 | . . . . . . 3 . 2 . . . . 5 1 2 . 1 . . 1 1 . 2 1 Combat Hostiles 1 | . . . . . . . . . . . . . . . . . . . . . 1 . . . Follow-up Attacks . | . . . . . . . . . . . . . . . . . . . . . . . . . Damage Inflicted 12266 | . 522 349 153 2069 1828 317 . 645 . 88 . 109 1337 1107 302 . 353 . . 192 409 . 1308 1178 Guns 4276 | . 522 349 153 1217 1689 . . 107 . 24 . 43 . 30 . . . . . . . . . 142 Cannons 1189 | . . . . 852 139 . . . . . . . . . . . . . . . 162 . . 36 Explosions 2373 | . . . . . . . . . . . . . 618 885 . . . . . . . . . 870 Melee 4201 | . . . . . . 317 . 538 . 64 . 66 719 192 302 . 353 . . 192 117 . 1211 130 Ramming . | . . . . . . . . . . . . . . . . . . . . . . . . . Kinetic 4631 | . 241 213 70 1771 1828 . . 107 . 24 . 43 . 30 . . . . . . 162 . . 142 Thermal 1025 | . 281 136 83 298 . . . . . . . . . . . . . . . . 130 . 97 . Explosive 2373 | . . . . . . . . . . . . . 618 885 . . . . . . . . . 870 Electromagnetic 36 | . . . . . . . . . . . . . . . . . . . . . . . . 36 Impact 2665 | . . . . . . 317 . 538 . 64 . 66 719 192 302 . 353 . . 114 . . . . Slashing . | . . . . . . . . . . . . . . . . . . . . . . . . . Piercing 1536 | . . . . . . . . . . . . . . . . . . . . 78 117 . 1211 130 Highest Corruption 19 | . . . . . . . 18 19 19 19 19 19 2 2 . . . . . . . . 7 13 Average Corruption 12 | . . . . . . . 10 18 19 19 19 19 1 2 . . . . . . . . 6 9 Corruption Purged . | . . . . . . . . . . . . . . . . . . . . . . . . . Corruption Blocked . | . . . . . . . . . . . . . . . . . . . . . . . . . Effects 91 | . . . . . . . 7 30 7 8 1 17 4 5 . . . . . . . . 2 10 Message Errors 18 | . . . . . . . 1 7 3 1 . 4 . 1 . . . . . . . . . 1 Matter Fused 22 | . . . . . . . 2 9 1 1 1 2 2 1 . . . . . . . . . 3 Heat Flow Errors 8 | . . . . . . . . 3 . 3 . . . 1 . . . . . . . . 1 . Energy Discharges 13 | . . . . . . . 1 5 1 . . 2 . . . . . . . . . . 1 3 Parts Rejected 1 | . . . . . . . . 1 . . . . . . . . . . . . . . . . Parts Fused 3 | . . . . . . . . 1 1 . . . . . . . . . . . . . . 1 Data Loss (minor) 5 | . . . . . . . 1 1 1 1 . 1 . . . . . . . . . . . . Data Loss (major) 8 | . . . . . . . . . . 2 . 1 2 2 . . . . . . . . . 1 Misfires 1 | . . . . . . . . 1 . . . . . . . . . . . . . . . . Alerts 3 | . . . . . . . . 1 . . . 1 . . . . . . . . . . . 1 Misdirections 8 | . . . . . . . 2 1 . . . 5 . . . . . . . . . . . . Weapon Failures 1 | . . . . . . . . . . . . 1 . . . . . . . . . . . . Overload Shots . | . . . . . . . . . . . . . . . . . . . . . . . . . Overflow Damage 1888 | . . . . . . 148 . 311 . 30 . 58 472 31 158 . 68 . . 126 26 . 351 109 Projectiles 4 | . . . . . . . . . . . . . . . . . . . . . 4 . . . Explosions 70 | . . . . . . . . . . . . . . 31 . . . . . . . . . 39 Melee 1814 | . . . . . . 148 . 311 . 30 . 58 472 . 158 . 68 . . 126 22 . 351 70 Knockbacks 27 | . . . . 7 9 2 . 2 . 1 . . 4 . 1 . . . . . 1 . . . Impact 10 | . . . . . . 2 . 2 . 1 . . 4 . 1 . . . . . . . . . Kinetic 16 | . . . . 7 8 . . . . . . . . . . . . . . . 1 . . . Secondary 1 | . . . . . 1 . . . . . . . . . . . . . . . . . . . Self-Inflicted Damage 145 | . . . . . . . . . . . . . 134 11 . . . . . . . . . . Shots 5 | . . . . . . . . . . . . . 4 1 . . . . . . . . . . Rammed . | . . . . . . . . . . . . . . . . . . . . . . . . . Targets Rammed . | . . . . . . . . . . . . . . . . . . . . . . . . . Kicked . | . . . . . . . . . . . . . . . . . . . . . . . . . Crushed . | . . . . . . . . . . . . . . . . . . . . . . . . . Highest Temperature 445 | . 96 234 99 216 45 32 4 445 61 310 118 306 54 157 234 . . . . 164 3 . 123 58 Average Temperature 53 | . 28 78 33 43 11 11 1 41 21 83 62 146 22 13 93 . . . . 88 3 . 46 22 Received Heat Transfer 2255 | . 72 135 24 483 711 24 . 9 . 18 . 30 90 114 33 . . . . . 66 . 220 226 Effects 4 | . . . . . . . . 1 . . . 1 . . 2 . . . . . . . . . Energy Bleed 2 | . . . . . . . . 1 . . . 1 . . . . . . . . . . . . Interference 2 | . . . . . . . . . . . . . . . 2 . . . . . . . . . Siege Activations . | . . . . . . . . . . . . . . . . . . . . . . . . . Robots Corrupted 18 | . . . . . . 5 . 4 . 1 . . 3 . 4 . 1 . . . . . . . Combat Hostiles 3 | . . . . . . . . 1 . 1 . . . . . . 1 . . . . . . . Parts Fried 41 | . . . . . . 11 . 7 . . . 2 9 . 11 . 1 . . . . . . . Impact Corruptions 51 | . . . . . . 10 . 12 . 1 . 1 15 . 7 . 5 . . . . . . . Robots Melted 2 | . . . . . . . . . . . . . . . . . . . . . 2 . . . Combat Hostiles 2 | . . . . . . . . . . . . . . . . . . . . . 2 . . . Parts Melted 6 | . 2 1 . . . . . . . . . . . . . . . . . . 2 . 1 . Heat Transferred 4319 | . 962 444 185 777 . . . . . . . . . . . . . . . . 1280 . 671 . Parts Sabotaged . | . . . . . . . . . . . . . . . . . . . . . . . . . Parts Stolen . | . . . . . . . . . . . . . . . . . . . . . . . . . Parts Stripped . | . . . . . . . . . . . . . . . . . . . . . . . . . Power Chain Reactions . | . . . . . . . . . . . . . . . . . . . . . . . . . Alert | -11 -10 -10 -9 -9 -8 -7 -7 -7 -7 -7 -7 -6 -6 -6 -5 -5 -5 -5 -4 -4 -4 -4 -3 -3 ------- Run | Yrd Mat Min Mat Sto Mat Fac Was Fac Low Low Dat Pro Fac Ext Fac Upp Upp Zhi Pro Fac Upp Upp Res Tes Peak Influence 687 | . 165 105 199 496 332 229 113 491 . . . . 687 505 573 . . . . 182 . . 457 382 Initial 638 | . . 45 17 71 147 6 66 31 . . . . 638 223 213 . . . . 24 . . . 223 Average 192 | . 78 60 97 317 160 73 57 305 . . . . 519 284 288 . . . . 93 . . 197 221 Maximum Alert Level 2 | . . . . 2 1 1 . 2 . . . . 2 2 2 . . . . . . . 2 1 Low Security (%) 59 | 100 100 100 100 19 70 98 100 21 . . . . . 30 . . . . . 100 . . 43 29 Level 1 25 | . . . . 35 29 1 . 48 . . . . 18 32 94 . . . . . . . 54 70 Level 2 14 | . . . . 45 . . . 30 . . . . 81 37 5 . . . . . . . 2 . Level 3 . | . . . . . . . . . . . . . . . . . . . . . . . . . Level 4 . | . . . . . . . . . . . . . . . . . . . . . . . . . Level 5 . | . . . . . . . . . . . . . . . . . . . . . . . . . High Security . | . . . . . . . . . . . . . . . . . . . . . . . . . Max Security . | . . . . . . . . . . . . . . . . . . . . . . . . . Squads Dispatched 41 | . 1 . 3 4 4 1 . 7 . . . . 4 1 4 . . . . 2 . . 6 4 Investigation 23 | . 1 . 2 1 1 1 . 4 . . . . 3 1 3 . . . . 2 . . 2 2 Extermination 2 | . . . . . . . . 1 . . . . . . . . . . . . . . 1 . Reinforcement 9 | . . . 1 2 1 . . 2 . . . . . . 1 . . . . . . . 1 1 Assault 1 | . . . . . . . . . . . . . . . . . . . . . . . . 1 Garrison 6 | . . . . 1 2 . . . . . . . 1 . . . . . . . . . 2 . Intercept . | . . . . . . . . . . . . . . . . . . . . . . . . . Searches Triggered 1 | . . . . . . . . . . . . . 1 . . . . . . . . . . . Data Miner Redirects 4 | . . . . . . . . . . . . . . . . . . . . . . . 1 3 Construction Impeded 1 | . . . . . . . . . . . . . . . 1 . . . . . . . . . Haulers Reinforced 2 | . . . . . . . . 1 . . . . . . . . . . . . . . 1 . Active Scanning Responses . | . . . . . . . . . . . . . . . . . . . . . . . . . Cargo Convoy Interrupts . | . . . . . . . . . . . . . . . . . . . . . . . . . Stealth | -11 -10 -10 -9 -9 -8 -7 -7 -7 -7 -7 -7 -6 -6 -6 -5 -5 -5 -5 -4 -4 -4 -4 -3 -3 --------- Run | Yrd Mat Min Mat Sto Mat Fac Was Fac Low Low Dat Pro Fac Ext Fac Upp Upp Zhi Pro Fac Upp Upp Res Tes Distress Signals 13 | . . . . 4 1 . . 1 . . . . . . 1 . . . . . . . 3 3 Communications Jammed . | . . . . . . . . . . . . . . . . . . . . . . . . . Distress Signals . | . . . . . . . . . . . . . . . . . . . . . . . . . Times Spotted 328 | . 15 9 7 31 30 25 3 26 . 8 . 8 7 29 16 3 7 . 3 14 11 2 45 29 Peak Tracking Total 22 | . 3 4 2 6 4 8 2 5 . 5 . 5 4 12 13 4 4 . 3 5 5 2 17 22 Tactical Retreats 41 | . . . . 1 1 8 . 5 . 3 . 1 . 1 2 3 2 . 2 3 . . 7 2 Traps | -11 -10 -10 -9 -9 -8 -7 -7 -7 -7 -7 -7 -6 -6 -6 -5 -5 -5 -5 -4 -4 -4 -4 -3 -3 ------- Run | Yrd Mat Min Mat Sto Mat Fac Was Fac Low Low Dat Pro Fac Ext Fac Upp Upp Zhi Pro Fac Upp Upp Res Tes Traps Triggered 11 | . . . 1 . . 2 . 1 . . . . . 1 1 . . . . . . . . 5 Indirectly . | . . . . . . . . . . . . . . . . . . . . . . . . . Trap Hack Attempts . | . . . . . . . . . . . . . . . . . . . . . . . . . Triggered . | . . . . . . . . . . . . . . . . . . . . . . . . . Disarmed . | . . . . . . . . . . . . . . . . . . . . . . . . . Reprogrammed . | . . . . . . . . . . . . . . . . . . . . . . . . . Reused . | . . . . . . . . . . . . . . . . . . . . . . . . . Traps Extracted . | . . . . . . . . . . . . . . . . . . . . . . . . . Installed . | . . . . . . . . . . . . . . . . . . . . . . . . . Triggered . | . . . . . . . . . . . . . . . . . . . . . . . . . Machines | -11 -10 -10 -9 -9 -8 -7 -7 -7 -7 -7 -7 -6 -6 -6 -5 -5 -5 -5 -4 -4 -4 -4 -3 -3 ---------- Run | Yrd Mat Min Mat Sto Mat Fac Was Fac Low Low Dat Pro Fac Ext Fac Upp Upp Zhi Pro Fac Upp Upp Res Tes Machines Disabled 17 | . 1 . . 1 . . . . . . . . 4 1 . . . . . . 1 . 1 8 Max in Single Turn 2 | . 1 . . 1 . . . . . . . . 2 1 . . . . . . 1 . . 2 Garrison Access 6 | . . . . 1 1 1 . 1 . . . . . . . . . . . . . . 1 1 Machines Repaired . | . . . . . . . . . . . . . . . . . . . . . . . . . Machines Dismantled 1 | . . . . . . . . . . . . . . . . . . . . . 1 . . . Machines Sabotaged . | . . . . . . . . . . . . . . . . . . . . . . . . . Overloaded Fab Kills . | . . . . . . . . . . . . . . . . . . . . . . . . . Hacking | -11 -10 -10 -9 -9 -8 -7 -7 -7 -7 -7 -7 -6 -6 -6 -5 -5 -5 -5 -4 -4 -4 -4 -3 -3 --------- Run | Yrd Mat Min Mat Sto Mat Fac Was Fac Low Low Dat Pro Fac Ext Fac Upp Upp Zhi Pro Fac Upp Upp Res Tes Machines Accessed 122 | . 8 1 5 7 6 8 . 17 . 2 4 . 8 9 8 . . 9 . 7 3 . 11 9 Terminals 63 | . 7 . 4 4 4 4 . 9 . . . . 4 7 5 . . . . 2 . . 6 7 Fabricators 6 | . . . . . . 1 . 1 . . . . 1 . 1 . . . . 1 . . . 1 Repair Stations 8 | . . . . . . . . 3 . . . . 2 1 1 . . . . 1 . . . . Recycling Units 11 | . 1 . . 2 . 1 . 2 . . . . . 1 1 . . . . 1 . . 2 . Scanalyzers 8 | . . . 1 . 1 1 . 1 . . . . 1 . . . . . . 2 . . 1 . Garrison Access 7 | . . . . 1 1 1 . 1 . . . . . . . . . . . . . . 2 1 Total Hacks 415 | . 24 1 11 16 26 32 . 49 . 2 33 . 26 34 22 . . 48 . 25 7 . 35 24 Successful 264 | . 11 1 6 7 21 11 . 21 . 2 33 . 10 20 11 . . 48 . 21 7 . 24 10 Failed 151 | . 13 . 5 9 5 21 . 28 . . . . 16 14 11 . . . . 4 . . 11 14 Catastrophic 22 | . 2 . 2 . . 3 . 8 . . . . . 1 2 . . . . 1 . . 1 2 Database Lockouts . | . . . . . . . . . . . . . . . . . . . . . . . . . Manual 160 | . 19 . 8 7 6 16 . 28 . . . . 10 14 10 . . . . 8 . . 20 14 Terminals 206 | . 20 . 9 9 14 18 . 27 . . . . 15 27 14 . . . . 9 . . 25 19 Fabricators 22 | . . . . . . 4 . 5 . . . . 3 . 3 . . . . 3 . . . 4 Repair Stations 23 | . . . . . . . . 7 . . . . 6 4 3 . . . . 3 . . . . Recycling Units 30 | . 4 . . 6 . 4 . 4 . . . . . 3 2 . . . . 2 . . 5 . Scanalyzers 31 | . . . 2 . 10 3 . 3 . . . . 2 . . . . . . 8 . . 3 . Garrison Access 12 | . . . . 1 2 3 . 3 . . . . . . . . . . . . . . 2 1 Terminal Hacks 172 | . 9 1 4 3 8 5 . 6 . 2 33 . 6 12 6 . . 48 . 5 7 . 11 6 Record 58 | . . . . . . . . . . . 11 . . 2 1 . . 36 . . 6 . 2 . Part Schematic 20 | . 1 . 1 . . . . 1 . . 12 . . 1 . . . 4 . . . . . . Robot Schematic 7 | . . . . . . . . . . . 7 . . . . . . . . . . . . . Robot Analysis 9 | . 3 . . . 1 . . . . . . . . 1 . . . 4 . . . . . . Prototype ID Bank 13 | . 2 . . . 1 . . . . . 3 . 1 1 . . . 4 . 1 . . . . Open Door 8 | . . 1 . 3 . . . . . 2 . . . 1 . . . . . . 1 . . . Level Access Points 1 | . . . . . . . . . . . . . . . . . . . . . . . . 1 Branch Access Points 8 | . 1 . 1 . 1 1 . 1 . . . . . . 1 . . . . . . . 1 1 Emergency Access Points 1 | . . . . . . . . . . . . . . . . . . . . 1 . . . . Machine Index 1 | . . . . . . . . . . . . . . . 1 . . . . . . . . . Terminal Index 11 | . 1 . 1 . 1 1 . 1 . . . . 1 1 1 . . . . 1 . . 1 1 Fabricator Index 3 | . . . . . . . . . . . . . . . 1 . . . . . . . 2 . Alert Level 3 | . . . . . 1 . . 1 . . . . . 1 . . . . . . . . . . Unreport Threat 9 | . . . . . 1 1 . 1 . . . . 2 1 . . . . . 1 . . 1 1 Locate Traps 10 | . 1 . 1 . 1 1 . 1 . . . . 1 2 . . . . . . . . 2 . Recall Investigation 3 | . . . . . . 1 . . . . . . . . 1 . . . . 1 . . . . Registered Prototypes 1 | . . . . . . . . . . . . . . . . . . . . . . . . 1 Zone Layout 5 | . . . . . 1 . . . . . . . 1 1 . . . . . . . . 2 . Protovariant Controls 1 | . . . . . . . . . . . . . . . . . . . . . . . . 1 Fabricator Hacks 15 | . . . . . . 2 . 3 . . . . 2 . 3 . . . . 3 . . . 2 Network Status 3 | . . . . . . . . 1 . . . . . . 1 . . . . 1 . . . . Load Schematic 6 | . . . . . . 1 . 1 . . . . 1 . 1 . . . . 1 . . . 1 Build 6 | . . . . . . 1 . 1 . . . . 1 . 1 . . . . 1 . . . 1 Repair Station Hacks 11 | . . . . . . . . 4 . . . . 1 2 2 . . . . 2 . . . . Scan Component 6 | . . . . . . . . 2 . . . . 1 1 1 . . . . 1 . . . . Repair 5 | . . . . . . . . 2 . . . . . 1 1 . . . . 1 . . . . Recycling Unit Hacks 6 | . 1 . . 1 . . . . . . . . . 1 . . . . . 1 . . 2 . Retrieve Components 6 | . 1 . . 1 . . . . . . . . . 1 . . . . . 1 . . 2 . Scanalyzer 27 | . . . 2 . 10 2 . 2 . . . . 1 . . . . . . 7 . . 3 . Insert Component 17 | . . . 2 . 6 1 . 1 . . . . 1 . . . . . . 4 . . 2 . Analyze 10 | . . . . . 4 1 . 1 . . . . . . . . . . . 3 . . 1 . Garrison Access Hacks 6 | . . . . 1 1 1 . 1 . . . . . . . . . . . . . . 1 1 Seal Access 6 | . . . . 1 1 1 . 1 . . . . . . . . . . . . . . 1 1 Unauthorized Hacks 27 | . 1 . . 2 2 1 . 5 . . . . . 5 . . . . . 3 . . 7 1 Terminals 17 | . . . . . 2 . . 4 . . . . . 4 . . . . . 2 . . 4 1 Assimilate 5 | . . . . . . . . 2 . . . . . . . . . . . . . . 2 1 Botnet 8 | . . . . . 1 . . 1 . . . . . 3 . . . . . 1 . . 2 . Operators 4 | . . . . . 1 . . 1 . . . . . 1 . . . . . 1 . . . . Fabricators . | . . . . . . . . . . . . . . . . . . . . . . . . . Repair Stations . | . . . . . . . . . . . . . . . . . . . . . . . . . Recycling Units 9 | . 1 . . 2 . 1 . 1 . . . . . 1 . . . . . 1 . . 2 . Reject 9 | . 1 . . 2 . 1 . 1 . . . . . 1 . . . . . 1 . . 2 . Scanalyzers . | . . . . . . . . . . . . . . . . . . . . . . . . . Garrison Access 1 | . . . . . . . . . . . . . . . . . . . . . . . 1 . Reprogram 1 | . . . . . . . . . . . . . . . . . . . . . . . 1 . Data Cores Recovered 1 | . . . . . . . . . . . . . . . . . . . . . . . 1 . Used . | . . . . . . . . . . . . . . . . . . . . . . . . . Hacking Detections 93 | . 8 . 5 4 4 8 . 15 . . . . 8 9 8 . . . . 6 . . 10 8 Full Trace Events 20 | . 1 . 1 1 1 1 . 4 . . . . 3 . 3 . . . . 2 . . 1 2 Feedback Events 3 | . . . . . . . . 1 . . . . 2 . . . . . . . . . . . Corruption 3 | . . . . . . . . 1 . . . . 2 . . . . . . . . . . . Feedback Blocked . | . . . . . . . . . . . . . . . . . . . . . . . . . Robot Schematics Acquired 9 | . . . . . . . . . . . 7 . . . . . . . . . . . . 2 Robots Built . | . . . . . . . . . . . . . . . . . . . . . . . . . Authchips . | . . . . . . . . . . . . . . . . . . . . . . . . . Time . | . . . . . . . . . . . . . . . . . . . . . . . . . Total Robot Build Rating . | . . . . . . . . . . . . . . . . . . . . . . . . . Part Schematics Acquired 30 | . 1 . 1 . 2 1 . 2 . . 12 . . 1 . . . 4 . 3 . . 1 2 Parts Built 9 | . . . . . . 2 . 2 . . . . 1 . 2 . . . . 1 . . . 1 Authchips . | . . . . . . . . . . . . . . . . . . . . . . . . . Time 492 | . . . . . . 42 . 84 . . . . 169 . 42 . . . . 93 . . . 62 Total Part Build Rating 44 | . . . . . . 8 . 8 . . . . 6 . 8 . . . . 7 . . . 7 Parts Repaired 5 | . . . . . . . . 2 . . . . . 1 1 . . . . 1 . . . . Time 295 | . . . . . . . . 146 . . . . . 22 19 . . . . 108 . . . . Parts Recycled . | . . . . . . . . . . . . . . . . . . . . . . . . . Recycled Matter . | . . . . . . . . . . . . . . . . . . . . . . . . . Retrieved Matter . | . . . . . . . . . . . . . . . . . . . . . . . . . Retrieved Components 21 | . 4 . . 10 . . . . . . . . . 2 . . . . . 1 . . 4 . Parts Scanalyzed 9 | . . . . . 2 1 . 1 . . . . 1 . . . . . . 3 . . 1 . Part Schematics Acquired 8 | . . . . . 2 1 . 1 . . . . . . . . . . . 3 . . 1 . Parts Damaged 1 | . . . . . . . . . . . . . . . . . . . . 1 . . . . Bothacking | -11 -10 -10 -9 -9 -8 -7 -7 -7 -7 -7 -7 -6 -6 -6 -5 -5 -5 -5 -4 -4 -4 -4 -3 -3 ------------ Run | Yrd Mat Min Mat Sto Mat Fac Was Fac Low Low Dat Pro Fac Ext Fac Upp Upp Zhi Pro Fac Upp Upp Res Tes Used RIF Installer . | . . . . . . . . . . . . . . . . . . . . . . . . . Robots Hacked . | . . . . . . . . . . . . . . . . . . . . . . . . . Non-combat . | . . . . . . . . . . . . . . . . . . . . . . . . . Combat . | . . . . . . . . . . . . . . . . . . . . . . . . . Robot Hacks Applied . | . . . . . . . . . . . . . . . . . . . . . . . . . Relay Couplers Released . | . . . . . . . . . . . . . . . . . . . . . . . . . Fabnet Peak Effective % . | . . . . . . . . . . . . . . . . . . . . . . . . . Robots Rewired . | . . . . . . . . . . . . . . . . . . . . . . . . . Allies Hacked . | . . . . . . . . . . . . . . . . . . . . . . . . . Hacks Repelled . | . . . . . . . . . . . . . . . . . . . . . . . . . Allies | -11 -10 -10 -9 -9 -8 -7 -7 -7 -7 -7 -7 -6 -6 -6 -5 -5 -5 -5 -4 -4 -4 -4 -3 -3 -------- Run | Yrd Mat Min Mat Sto Mat Fac Was Fac Low Low Dat Pro Fac Ext Fac Upp Upp Zhi Pro Fac Upp Upp Res Tes Total Allies 28 | . . 2 . . . . 18 2 . . . . . 3 . . . . . . . . 2 1 Largest Group 18 | . . 2 2 2 . . 18 6 . . . . . 3 . . . . . . . . 2 1 Highest-Rated Group 434 | . . 45 45 45 . . 434 164 . . . . . 85 . . . . . . . . 94 26 Highest-Rated Ally 47 | . . 31 31 31 . . 35 35 . . . . . 34 . . . . . . . . 47 26 Total Orders 12 | . . . . . . . . 2 . . . . . 3 . . . . . . . . 7 . STAY 1 | . . . . . . . . 1 . . . . . . . . . . . . . . . . FOLLOW 2 | . . . . . . . . 1 . . . . . . . . . . . . . . 1 . RETURN 9 | . . . . . . . . . . . . . . 3 . . . . . . . . 6 . Ally Attacks 267 | . . 1 7 10 6 . 70 33 . . . . . 50 . . . . . . . . 90 . Total Damage 7446 | . . 21 148 119 . . 3500 669 . . . . . 1038 . . . . . . . . 1951 . Kills 47 | . . 1 4 2 . . 13 10 . . . . . 9 . . . . . . . . 8 . Allies Corrupted 1 | . . . . . . . . 1 . . . . . . . . . . . . . . . . Allies Melted . | . . . . . . . . . . . . . . . . . . . . . . . . . Intel | -11 -10 -10 -9 -9 -8 -7 -7 -7 -7 -7 -7 -6 -6 -6 -5 -5 -5 -5 -4 -4 -4 -4 -3 -3 ------- Run | Yrd Mat Min Mat Sto Mat Fac Was Fac Low Low Dat Pro Fac Ext Fac Upp Upp Zhi Pro Fac Upp Upp Res Tes Robot Analysis Total 8 | . 2 . . . 1 . . . . . . . . 1 . . . 4 . . . . . . Derelict Logs Recovered 8 | . . 2 . . . . . . . . . 1 . . . . . . 2 . 2 1 . . Drone Launches 22 | . . . . . 6 . . . . . . . . 5 . . . . . . . . 11 . Drone Recoveries 13 | . . . . . . . . . . . . . . 4 . . . . . . . . 9 . Exploration | -11 -10 -10 -9 -9 -8 -7 -7 -7 -7 -7 -7 -6 -6 -6 -5 -5 -5 -5 -4 -4 -4 -4 -3 -3 ------------- Run | Yrd Mat Min Mat Sto Mat Fac Was Fac Low Low Dat Pro Fac Ext Fac Upp Upp Zhi Pro Fac Upp Upp Res Tes Turns Passed 9061 | 54 753 659 264 915 836 617 232 681 145 179 28 211 357 358 273 229 169 108 233 410 416 49 579 306 Spaces Moved 15138 | 39 523 478 155 500 346 1075 406 1617 424 415 84 438 678 533 749 596 354 229 874 1074 1265 232 1424 630 Core 7 | 4 . . . . . . . . . . . . . 3 . . . . . . . . . . Treads . | . . . . . . . . . . . . . . . . . . . . . . . . . Legs 2068 | 35 523 478 155 500 346 31 . . . . . . . . . . . . . . . . . . Wheels . | . . . . . . . . . . . . . . . . . . . . . . . . . Hover . | . . . . . . . . . . . . . . . . . . . . . . . . . Flight 13063 | . . . . . . 1044 406 1617 424 415 84 438 678 530 749 596 354 229 874 1074 1265 232 1424 630 Fastest Speed 12 | 50 120 120 120 120 120 28 28 28 28 28 28 28 27 25 23 24 23 21 21 12 21 21 19 18 Average Speed 40 | 112 120 120 120 124 177 33 28 28 28 28 28 28 27 36 24 26 25 24 21 20 21 21 24 25 Slowest Speed 550 | 120 120 120 120 190 330 190 28 28 28 28 28 28 28 550 25 28 29 29 21 24 21 21 100 108 Overloaded Moves 281 | . . . . . . . . . . . . . . . . . . . . 30 . . 160 91 Propulsion Burnouts 2 | . . . . . . . . . . . . . . . . . . . . . . . 1 1 Robots Hopped 48 | . . . . . . 3 . 9 1 1 . 1 1 . 6 3 1 . 1 1 . . 13 7 Cave-ins Triggered . | . . . . . . . . . . . . . . . . . . . . . . . . . Teleports 1 | . . . . . . . . . . . . . . . . . . 1 . . . . . . Exploration Rate (%) 51 | 4 90 71 21 65 33 28 97 39 67 61 68 55 15 52 20 64 51 62 90 19 96 23 32 73 Regions Visited 24 Branch Regions 14 Pre-discovered Areas 8 | . . 1 . . . . . . . . 1 1 . . . . . 3 2 . . . . . Known Exits Taken 18 | . 1 . 1 . . . . 1 1 1 1 1 1 1 1 1 1 1 1 1 1 1 1 . Unknown Exits Taken 4 | 1 . 1 . 1 1 . . . . . . . . . . . . . . . . . . . Scrap Searched 12 | . . 1 . . . . . . 5 . . . . . . 2 2 . 1 . 1 . . . Spaces Dug 84 | . 1 . . . . 6 1 18 . . . 3 11 4 7 5 . . 5 12 4 . 6 1 Terrain Destroyed 222 | . 1 . . 1 . 6 1 18 . . . 3 43 21 7 5 . . 6 12 6 . 6 86 Melee 82 | . . . . . . 6 1 18 . . . 3 11 4 7 5 . . 4 12 4 . 6 1 Projectile 9 | . 1 . . 1 . . . . . . . . . . . . . . 2 . 2 . . 3 AOE 131 | . . . . . . . . . . . . . 32 17 . . . . . . . . . 82 Terrain Rammed . | . . . . . . . . . . . . . . . . . . . . . . . . . Walls Destroyed . | . . . . . . . . . . . . . . . . . . . . . . . . . Machines Disabled . | . . . . . . . . . . . . . . . . . . . . . . . . . Actions | -11 -10 -10 -9 -9 -8 -7 -7 -7 -7 -7 -7 -6 -6 -6 -5 -5 -5 -5 -4 -4 -4 -4 -3 -3 --------- Run | Yrd Mat Min Mat Sto Mat Fac Was Fac Low Low Dat Pro Fac Ext Fac Upp Upp Zhi Pro Fac Upp Upp Res Tes Total 17245 | 46 576 537 216 647 442 1297 523 1768 448 471 87 503 810 679 806 655 412 280 914 1230 1360 231 1573 734 Wait 1193 | . 2 26 41 33 9 177 101 80 23 45 . 51 83 114 33 55 35 26 27 114 50 . 51 17 Move 15024 | 38 522 477 154 499 345 1069 405 1599 421 412 83 435 675 532 737 589 351 228 871 1071 1264 231 1399 617 Hop 43 | . . . . . . 3 . 8 1 1 . 1 1 . 5 3 1 . 1 1 . . 11 6 Pick Up 89 | 2 5 7 3 10 2 2 4 5 1 1 . . 5 2 . 1 6 4 1 4 2 . 14 8 Fast Attach 101 | 6 4 1 1 6 4 5 3 8 1 1 2 . 2 3 4 . 2 8 2 8 2 . 13 15 Attach 74 | . 1 . 2 4 5 7 1 3 . 1 . . 8 6 2 2 . 2 1 4 1 . 15 9 Detach 60 | . 3 . 1 1 5 3 1 3 1 . . . 5 6 2 . . 2 3 4 2 . 16 2 Swap 48 | . 4 . 3 8 3 4 1 4 . 1 . . 2 3 2 . 3 1 . . 2 . 1 6 Drop 109 | . 1 9 2 13 3 8 6 11 . 4 2 . 4 . . . 3 9 2 8 3 . 15 6 Fire 281 | . 34 17 9 73 66 2 . 12 . 3 . 8 4 6 . . . . 2 . 19 . 11 15 Melee 184 | . . . . . . 17 1 35 . 2 . 8 21 7 15 5 11 . 4 16 8 . 27 7 Ram . | . . . . . . . . . . . . . . . . . . . . . . . . . Kick . | . . . . . . . . . . . . . . . . . . . . . . . . . Crush . | . . . . . . . . . . . . . . . . . . . . . . . . . Escape Stasis 32 | . . . . . . . . . . . . . . . 6 . . . . . . . . 26 Rewire . | . . . . . . . . . . . . . . . . . . . . . . . . . Trap . | . . . . . . . . . . . . . . . . . . . . . . . . . Miscellaneous 7 | . . . . . . . . . . . . . . . . . . . . . 7 . . . Route ------- -11/Scrapyard -10/Materials (discovered 5 exits: *Mat x3 / *Min x2) -10/Mines (discovered 2 exits: *Mat x2) -9/Materials (discovered 4 exits: *Min x2 / *Sto x2) -9/Storage -8/Materials -7/Factory (discovered 4 exits: *Fac x2 / Low x2) -7/Waste -7/Factory (discovered 3 exits: *Fac / *Low x2) -7/Lower Caves -7/Lower Caves (discovered 2 exits: *Fac / *Dat) -7/Data Miner -6/Proximity Caves -6/Factory -6/Extension -5/Factory (discovered 2 exits: *Upp x2) -5/Upper Caves -5/Upper Caves -5/Zhirov -4/Proximity Caves -4/Factory (discovered 2 exits: *Res / *Upp) -4/Upper Caves -4/Upper Caves -3/Research (discovered 6 exits: *Res x3 / Arm / *Tes x2) -3/Testing (discovered 1 exit: Res) History --------- Turn | Location | Event 6 | -11/Scrapyard | Discovered new exit (range 15) 55 | -11/Scrapyard | Entered Materials 71 | -10/Materials | Discovered new exit (range 6) 217 | -10/Materials | Identified exit to Mines 311 | -10/Materials | Build established: Mutant 450 | -10/Materials | Discovered new exit (range 5) 578 | -10/Materials | Discovered new exit (range 12) 716 | -10/Materials | Discovered new exit (range 3) 808 | -10/Materials | Entered Mines 885 | -10/Mines | Learned Materials garrison access intel 913 | -10/Mines | Assembled infested the area 913 | -10/Mines | A weapon hastily lodged in a ceiling crevice suddenly fell to the ground 918 | -10/Mines | Assisted by a Guerilla fighting off Assembled 1035 | -10/Mines | Found the Drone Emporium 1044 | -10/Mines | Found Prototype Device 1107 | -10/Mines | Discovered new exit (range 8) 1194 | -10/Mines | Discovered new exit (range 3) 1389 | -10/Mines | Found a damaged Exp. Sensor Array with a note attached 1392 | -10/Mines | Found Prototype Device 1467 | -10/Mines | Entered Materials 1467 | -9/Materials | Accompanied by 2 allies 1467 | -9/Materials | Evolved 2 slots: Propulsion x2 1472 | -9/Materials | Led the pair of lost Derelicts to an unsafe place 1602 | -9/Materials | Discovered new exit (range 5) 1630 | -9/Materials | Identified Exp. Sensor Array 1630 | -9/Materials | Identified Bomb Drone Bay 1648 | -9/Materials | Identified exit to Mines 1648 | -9/Materials | Identified exit to Storage 1731 | -9/Materials | Entered Storage 1731 | -9/Storage | Accompanied by 2 allies 1840 | -9/Storage | Build established: Scavenger-Mutant 2265 | -9/Storage | Discovered new exit (range 16) 2368 | -9/Storage | Garrison activated, responded to threat 2432 | -9/Storage | Lost 3 parts (3n) 2646 | -9/Storage | Entered Materials 2646 | -8/Materials | Evolved 2 slots: Utility x2 2647 | -8/Materials | Loaded intel: 1 garrison access location 2919 | -8/Materials | Garrison activated, responded to threat 2994 | -8/Materials | Lost 4 allies 3009 | -8/Materials | Discovered new exit (range 7) 3375 | -8/Materials | Lost 3 parts (3n) 3482 | -8/Materials | Entered Factory 3482 | -7/Factory | Evolved 2 slots: Propulsion x1, Utility x1 3690 | -7/Factory | Discovered new exit (range 15) 3866 | -7/Factory | Discovered new exit (range 6) 4058 | -7/Factory | Identified exit to Lower Caves 4077 | -7/Factory | Fabricated Xenon Bombardment Thruster? 4099 | -7/Factory | Manually triggered Chute Trap 4099 | -7/Factory | Sucked down chute 4099 | -7/Factory | Entered Waste 4104 | -7/Waste | Build established: Hacker-Sprinter 4109 | -7/Waste | Spotted C-40 Crusher 4114 | -7/Waste | EMP discharged 4119 | -7/Waste | Spotted C-40 Crusher 4128 | -7/Waste | Met Warlord forces unprepared to attack 4179 | -7/Waste | Spotted C-40 Crusher 4214 | -7/Waste | EMP discharged 4214 | -7/Waste | System corruption reached 10% 4217 | -7/Waste | Spotted C-40 Crusher 4219 | -7/Waste | Spotted C-40 Crusher 4224 | -7/Waste | Allies destroyed C-40 Crusher 4241 | -7/Waste | Discovered new exit (range 12) 4314 | -7/Waste | EMP discharged 4331 | -7/Waste | Entered Factory 4331 | -7/Factory | Accompanied by 6 allies 4430 | -7/Factory | Discovered new exit (range 5) 4443 | -7/Factory | Fabricated Xenon Bombardment Thruster? 4684 | -7/Factory | Repaired Imp. Light Armor Plating? 4901 | -7/Factory | Repaired Exp. Sensor Array? 5012 | -7/Factory | Entered Lower Caves 5028 | -7/Lower Caves | Encountered a Warlord checkpoint 5123 | -7/Lower Caves | Discovered new exit (range 12) 5133 | -7/Lower Caves | Found DCF Scrap (14 items) 5156 | -7/Lower Caves | Identified exit to Lower Caves 5157 | -7/Lower Caves | Entered another Lower Caves area 5166 | -7/Lower Caves | Discovered new exit (range 6) 5168 | -7/Lower Caves | Identified exit to Factory 5235 | -7/Lower Caves | Encountered a Warlord checkpoint 5330 | -7/Lower Caves | Found Prototype Device 5334 | -7/Lower Caves | Discovered new exit (range 7) 5336 | -7/Lower Caves | Identified exit to Data Miner 5336 | -7/Lower Caves | Entered Data Miner 5336 | -7/Data Miner | Discovered new exit (range 6) 5338 | -7/Data Miner | Identified exit to Proximity Caves 5343 | -7/Data Miner | Met Data Miner 5351 | -7/Data Miner | Learned location of Section 7 (-2) 5351 | -7/Data Miner | Acquired the access code to Warlord's prototype stash 5354 | -7/Data Miner | Received God Mode back door access code from Data Miner 5364 | -7/Data Miner | Entered Proximity Caves 5367 | -6/Proximity Caves | Spotter reported a threat 5369 | -6/Proximity Caves | Spotter reported a threat 5422 | -6/Proximity Caves | Spotter reported a threat 5468 | -6/Proximity Caves | Spotter reported a threat 5478 | -6/Proximity Caves | Build established: Sprinter 5531 | -6/Proximity Caves | Unaware initiated a cargo recovery operation 5541 | -6/Proximity Caves | Spotted B-75 Beast 5571 | -6/Proximity Caves | Discovered exit to Factory (range 5) 5573 | -6/Proximity Caves | Learned location of Extension (-6) 5575 | -6/Proximity Caves | Entered Factory 5575 | -6/Factory | Evolved 2 slots: Utility x2 5580 | -6/Factory | Identified Heart of Steel 5724 | -6/Factory | Discovered new exit (range 10) 5756 | -6/Factory | Identified exit to Extension 5780 | -6/Factory | Garrison activated, responded to threat 5861 | -6/Factory | Fabricated Combat Drone Bay? 5925 | -6/Factory | Search patrols dispatched 5932 | -6/Factory | Entered Extension 5947 | -6/Extension | Disrupted transfer network 5971 | -6/Extension | Build established: Hacker-Sprinter 5986 | -6/Extension | Rescued a captive Derelict 5986 | -6/Extension | Rescued a captive Derelict 6038 | -6/Extension | Repaired Hvy. Rocket Launcher 6057 | -6/Extension | Rescued a captive Derelict 6150 | -6/Extension | Lost 3 allies 6163 | -6/Extension | Destroyed 7 combat bots 6173 | -6/Extension | Lost 4 parts (1p2n1w) 6285 | -6/Extension | Spotted B-75 Beast 6286 | -6/Extension | Spotted B-75 Beast 6289 | -6/Extension | Discovered new exit (range 3) 6290 | -6/Extension | Identified exit to Factory 6290 | -6/Extension | Entered Factory 6290 | -5/Factory | Evolved 2 slots: Propulsion x1, Utility x1 6323 | -5/Factory | Identified exit to Upper Caves 6377 | -5/Factory | Repaired Imp. Light Armor Plating 6470 | -5/Factory | Fabricated Xenon Bombardment Thruster (x2) 6563 | -5/Factory | Entered Upper Caves 6567 | -5/Upper Caves | Attacked by a delusional Derelict stockpiling parts 6781 | -5/Upper Caves | Discovered new exit (range 5) 6781 | -5/Upper Caves | Identified exit to Upper Caves 6792 | -5/Upper Caves | Entered another Upper Caves area 6941 | -5/Upper Caves | Discovered new exit (range 8) 6943 | -5/Upper Caves | Identified exit to Zhirov 6961 | -5/Upper Caves | Entered Zhirov 6961 | -5/Zhirov | Discovered new exit (range 3) 6962 | -5/Zhirov | Identified exit to Proximity Caves 6967 | -5/Zhirov | Met Zhirov 6976 | -5/Zhirov | Found Alien Artifact 6980 | -5/Zhirov | Identified Transdimensional Reconstructor 6980 | -5/Zhirov | Warped through subspace 7046 | -5/Zhirov | Found Alien Artifact 7046 | -5/Zhirov | Identified Integrated Reactor 7046 | -5/Zhirov | Installed Integrated Reactor, increased core energy generation (+10) 7062 | -5/Zhirov | Learned location of Quarantine (-2) 7062 | -5/Zhirov | Learned location of Testing (-3) 7062 | -5/Zhirov | Learned location of Command (-1) 7063 | -5/Zhirov | Zhirov requested help retrieving the SGEMP Prototype 7069 | -5/Zhirov | Entered Proximity Caves 7204 | -4/Proximity Caves | Learned location of Armory (-3) 7231 | -4/Proximity Caves | Spotted B-86 Titan 7248 | -4/Proximity Caves | Found DCF Scrap (11 items) 7277 | -4/Proximity Caves | Discovered new exit (range 10) 7302 | -4/Proximity Caves | Identified exit to Factory 7302 | -4/Proximity Caves | Entered Factory 7302 | -4/Factory | Evolved 2 slots: Utility x2 7393 | -4/Factory | Discovered new exit (range 13) 7453 | -4/Factory | Discovered new exit (range 12) 7457 | -4/Factory | Identified exit to Research 7464 | -4/Factory | Repaired Exp. Sensor Array? 7678 | -4/Factory | Fabricated Assault Drone Bay? 7712 | -4/Factory | Identified exit to Upper Caves 7712 | -4/Factory | Entered Upper Caves 7815 | -4/Upper Caves | Learned Extension trap positions 7815 | -4/Upper Caves | Learned Extension terminal intel 7815 | -4/Upper Caves | Learned Armory terminal intel 7824 | -4/Upper Caves | Learned 4 Research zone layouts 7824 | -4/Upper Caves | Learned Research emergency access door positions 7835 | -4/Upper Caves | Discovered new exit (range 16) 7838 | -4/Upper Caves | Identified exit to Upper Caves 7861 | -4/Upper Caves | Found Alien Artifact 7938 | -4/Upper Caves | Attracted the attention of an 0b10 checkpoint 8128 | -4/Upper Caves | Entered another Upper Caves area 8145 | -4/Upper Caves | Discovered exit to Research (range 10) 8177 | -4/Upper Caves | Entered Research 8177 | -3/Research | Evolved 2 slots: Utility x2 8178 | -3/Research | Identified exit to Testing 8179 | -3/Research | Identified exit to Research 8179 | -3/Research | Discovered exit to Research (range 8) 8219 | -3/Research | Identified exit to Armory 8290 | -3/Research | Identified Dimensional Node Initializer 8450 | -3/Research | Found Prototype Processor 8508 | -3/Research | Identified Exp. Targeting Computer 8566 | -3/Research | Garrison activated, responded to threat 8686 | -3/Research | Incoming investigation squad redirected 8688 | -3/Research | Found Fusion Bomb Launcher 8716 | -3/Research | Discovered exit to Research (range 12) 8716 | -3/Research | Found Prototype Device 8721 | -3/Research | Lost 5 parts (1p1n3u) 8733 | -3/Research | Identified Exp. Thermal Shield 8756 | -3/Research | Entered Testing 8762 | -3/Testing | Found Prototype Ballistic Cannon 8762 | -3/Testing | Identified Omega Cannon 8836 | -3/Testing | Protovariant out of control (PH-7QG9Z8GODY) 8836 | -3/Testing | Unleashed a protovariant (PH-7QG9Z8GODY) 8852 | -3/Testing | Spotted PH-7QG9Z8GODY 8862 | -3/Testing | Incoming assault squad redirected 8865 | -3/Testing | Incoming investigation squad redirected 8874 | -3/Testing | Spotted Alpha 7 8879 | -3/Testing | Spotted Striker 8884 | -3/Testing | Spotted Striker 8890 | -3/Testing | Spotted Alpha 7 8892 | -3/Testing | Stole the SGEMP Prototype 8902 | -3/Testing | Fabricated Assault Drone Bay? 8922 | -3/Testing | Lost 5 parts (3n2u) 8926 | -3/Testing | Incoming assault squad redirected 8937 | -3/Testing | Found Prototype Launcher 8940 | -3/Testing | Found Prototype Device 8950 | -3/Testing | Identified System Purifier 8951 | -3/Testing | System corruption reached 10% 8958 | -3/Testing | Identified Tactical Quantum Warhead 9000 | -3/Testing | Found Prototype Device 9019 | -3/Testing | Lost 3 parts (1p1u1w) 9024 | -3/Testing | Spotted Investigator 9028 | -3/Testing | Identified Exp. Thermal Defense Suite 9028 | -3/Testing | Scanned by Researcher 9045 | -3/Testing | Core integrity fell below 50% 9057 | -3/Testing | Build established: Wizard-Sprinter 9058 | -3/Testing | Core integrity fell below 20% 9062 | -3/Testing | Destroyed by G-67 Veteran with Field Laser Last Messages --------------- 09055_ The unstable cave ceiling collapses. 09055_ Held in stasis. 09055_ Investigator is analyzing... 09056_ Penetrated by Slug. 09057_ Adv. System Shield destroyed. 09057_ Impulse Thruster Array destroyed. 09058_ Held in stasis. 09058_ C-55 Analyst is analyzing... 09058_ Held in stasis. 09058_ Investigator is analyzing... 09059_ U-05 Engineer lays Concrete. 09060_ Cld. Nuclear Pulse Thruster destroyed. 09060_ Slug penetrates Wall. 09060_ Penetrated by Slug. 09060_ U-05 Engineer lays Concrete. 09061_ The unstable cave ceiling collapses. 09061_ U-05 Engineer lays Concrete. 09061_ Held in stasis. 09061_ Investigator is analyzing... 09062_ U-05 Engineer lays Concrete. Map ----- +----------------------------------------------------+ | ???????????##"" """""##?????????????? | | ???????????##" """""##?????????????? | | ??????????###" "##?????????????? | | ??????????### "##?????????????? | | ??????????## """##?????????##### | | ??????????## """##?????????##### | | ??????????#####++######??????#####! | | ??????????##### ######??######### | | #########???## %##???########""" | | #########???### ###???####"""#""" | | #! ! ##???### ###??##"[" ""#"S | | # ######## ##???##" " ""#""" | | # """" ######## ##???## ""# "" ! | | # """" # ##???##""" "#### | | # """" # ####### #### | | # """" " % ##########+######### | | # + w h | | # """" # % hhh | | # """" ### ;;;;;;;;;############# | | # """" ### ; ########## | | # """" ### ; ##??????## | | ?? ### ; ##??????## | | ? ] ### ; ##??????## | | ?######### ; ##??????## | | ?######### KK ##??????## | | ????????## @ ###????## | | ????????## # # ##????## | | ????????## c ######## | | ????????## ######## | | ????????## ] " #### ## | | ????????## " #### | | ????????###### gcg #### | | ########### g[ ! ####### | | ########### """ """#### | | # ## """ g T"##### | | # ## """ ig """##### | | # "" ## """ #####?## | | # " "" # """ #####?## | | # """ ! """ # u ##???### | | # """ # ^ """" + [## | | # """ ## """ + [## | | # "" %! """" ## ]# | | # "" / """" ## ## T | | # " """" ##?? ## " | | # " """" ##???## | | # " # ## """" !##???#### | | # # ## """" ##???#### | | # ### ##??????? | | # #### ### ##??????? | | # #### ### ##??????? | +----------------------------------------------------+ Best States ------------- Heat Dissipation 110 Energy Generation 29 Energy Capacity 640 Matter Stores 300 Matter Capacity 300 Sight Range 16 Robot Scan Range 20 Terrain Scan Density 10 Cloak Strength 3 Armor Coverage 375 Resistance: KI 20 Resistance: TH 20 Resistance: EX 20 Resistance: EM 20 Resistance: I 20 Resistance: S 20 Resistance: P 20 Utility Shielding 90 Evasion (%) 65 Offensive Hacking 50 Defensive Hacking 28 Item Schematics ----------------- Sml. Storage Unit | -10/Materials | Hacked Plasma Cutter | -9/Materials | Hacked Imp. Flight Unit | -8/Materials | Scanalyzed Med. Armor Plating | -8/Materials | Scanalyzed Xenon Bombardment Thruster | -7/Factory | Scanalyzed Adv. Datajack | -7/Factory | Scanalyzed Hacking Suite | -7/Factory | Hacked Combat Drone Bay | -7/Data Miner | Free Lgt. Regenerative Plating | -7/Data Miner | Free Cld. Aerolev Unit | -7/Data Miner | Free Gravity Neutralizer | -7/Data Miner | Free Force Rifle | -7/Data Miner | Free Antigrav System | -7/Data Miner | Free Imp. Coolant Injector | -7/Data Miner | Free Hvy. Shock Bomb Launcher | -7/Data Miner | Free Imp. Proton Missile Launcher | -7/Data Miner | Free Nuclear Pulse Array | -7/Data Miner | Free Adv. VSS Leg | -7/Data Miner | Free Matter Neutralizer | -7/Data Miner | Free Adv. Hacking Suite | -6/Extension | Hacked Assault Drone Bay | -5/Zhirov | Free Exp. Heat Sink | -5/Zhirov | Free Exp. Optical Array | -5/Zhirov | Free Imp. Arc Thrower | -5/Zhirov | Free Impulse Thruster | -4/Factory | Scanalyzed Field Propulsion Drive | -4/Factory | Scanalyzed 0b10 Decoder Chip [Generic] | -4/Factory | Scanalyzed Enh. Flamer | -3/Research | Scanalyzed Centrium Greatsword | -3/Testing | Archive Hvy. Dispersion Rifle | -3/Testing | Archive Robot Schematics ------------------ M-14 Sweeper | -7/Data Miner | Free Y-54 Guardian | -7/Data Miner | Free G-47 Trooper | -7/Data Miner | Free R-10 Processor | -7/Data Miner | Free L-41 Fighter | -7/Data Miner | Free H-66 Slayer | -7/Data Miner | Free B-48 Gladiator | -7/Data Miner | Free L-61 Swordsman | -3/Testing | Archive R-06 Scavenger | -3/Testing | Archive Fabricated ------------ Xenon Bombardment Thruster | x2 | -7/Factory Xenon Bombardment Thruster | x2 | -7/Factory Combat Drone Bay | x1 | -6/Factory Xenon Bombardment Thruster | x2 | -5/Factory Assault Drone Bay | x1 | -4/Factory Assault Drone Bay | x1 | -3/Testing Alien Tech Used ----------------- Transdimensional Reconstructor Integrated Reactor Achievements -------------- Alien Tech Rampage Subspace Traveler The Science Guy Challenges ------------ None Game ------ Seed SigixConstructSuperbattery Manual? 0 Play Time 03:59:06 Cumulative 70.5 hours Start 2024.09.16 @ 10:00:45 End 2024.10.11 @ 16:33:42 Sessions 5 Manual Loads 0 Difficulty Adventurer Special Mode None Game No. 38 Rogue 0 Adventurer 38 Explorer 0 Win Type - Total 3 Types 3/0/0/0/0/0/0/0/0 Lore% 39 Gallery% 48 Achievement% 41 Wizard Run 0 Options --------- Layout 1 ASCII 0 Keyboard 1 Movement Numpad Keybinds 0 Fullscreen 1 Font 24/Terminus Map View 50x35 Zoom Use 0% Tactical HUD 1 Map Filters NONE Filters NONE Steam 1 RUN: 96e4c398-4665-4b20-90f2-8055abadc2a0